bitfinex/quotes_BTCUSD_20240811
["timestamp","ask_amount","ask_price","bid_price","bid_amount"]
[1723390969573,0.00831,60364.0,60363.0,1.69621665]
[1723390970001,0.00831,60364.0,60363.0,1.72421665]
[1723390970237,0.00831,60364.0,60363.0,1.74421665]
[1723390970445,0.00831,60364.0,60363.0,2.14807333]
[1723390970654,0.00831,60364.0,60363.0,2.13171931]
[1723390970861,0.00831,60364.0,60363.0,1.88213216]
[1723390971072,0.00831,60364.0,60363.0,1.72421665]
[1723390971282,0.00831,60364.0,60363.0,1.58701382]
[1723390971492,0.00831,60364.0,60363.0,1.71029326]
[1723390972126,0.00831,60364.0,60363.0,1.73229326]
[1723390972339,0.00831,60364.0,60363.0,1.55639326]
[1723390972569,0.00831,60364.0,60363.0,1.57039326]
[1723390973299,0.00831,60364.0,60363.0,1.58439326]
[1723390973972,0.00831,60364.0,60363.0,1.60439326]
[1723390974196,0.00331,60364.0,60363.0,1.60439326]
[1723390974428,0.00331,60364.0,60363.0,1.60639126]
[1723390977132,0.00331,60364.0,60363.0,1.58439126]
[1723390977959,0.00331,60364.0,60363.0,1.58439124]
[1723390978375,0.00331,60364.0,60363.0,1.60639124]
[1723390978589,0.00331,60364.0,60363.0,1.77831288]
[1723390978808,0.00331,60364.0,60363.0,1.60639124]
[1723390979861,0.00331,60364.0,60363.0,1.60439124]
[1723390980518,0.00331,60364.0,60363.0,1.58439124]
[1723390980752,0.00331,60364.0,60363.0,1.77439124]
[1723390980986,0.00331,60364.0,60363.0,1.77465509]
[1723390981427,0.00331,60364.0,60363.0,1.77434001]
[1723390982555,0.00331,60364.0,60363.0,1.44241001]
[1723390982763,0.00331,60364.0,60363.0,1.41941001]
[1723390982975,0.08441,60364.0,60363.0,0.28119226]
[1723390983194,0.15071,60364.0,60363.0,0.16522726]
[1723390983420,0.15256745,60364.0,60363.0,0.16522726]
[1723390983871,0.50045645,60364.0,60363.0,0.014]
[1723390984255,0.73238245,60364.0,60363.0,0.021]
[1723390984453,0.96430845,60364.0,60363.0,0.021]
[1723390985631,0.96430845,60364.0,60363.0,0.007]
[1723390985855,0.96430845,60364.0,60363.0,0.016]
[1723390986078,0.115976,60357.0,60356.0,0.000913]
[1723390986305,0.260976,60357.0,60356.0,0.000913]
[1723390986539,0.14684728,60357.0,60356.0,0.000913]
[1723390986765,0.14684728,60357.0,60356.0,0.116891]
[1723390986989,0.14684728,60357.0,60356.0,0.000913]
[1723390987466,0.14884728,60357.0,60356.0,0.001913]
[1723390987907,0.14684728,60357.0,60356.0,0.117891]
[1723390988203,0.14684728,60357.0,60356.0,0.001913]
[1723390988658,0.14684728,60357.0,60356.0,0.000913]
[1723390989295,0.14784728,60357.0,60356.0,0.001913]
[1723390989807,0.14684728,60357.0,60356.0,0.001913]
[1723390990009,0.14684728,60357.0,60356.0,0.000913]
[1723390990206,0.14684728,60357.0,60356.0,0.002913]
[1723390990406,0.26282328,60357.0,60356.0,0.002913]
[1723390990644,0.72672928,60357.0,60356.0,0.002913]
[1723390991992,0.72672928,60357.0,60356.0,0.000913]
[1723390992284,0.14684728,60357.0,60356.0,0.000913]
[1723390992694,0.26482328,60357.0,60356.0,0.000913]
[1723390993252,0.14684728,60357.0,60356.0,0.000913]
[1723390993509,0.26382328,60357.0,60356.0,0.000913]
[1723390994047,0.26282328,60357.0,60356.0,0.000913]
[1723390994251,0.26382328,60357.0,60356.0,0.000913]
[1723390994457,0.49577628,60357.0,60356.0,0.000913]
[1723390994883,0.26382328,60357.0,60356.0,0.000913]
[1723390995736,0.26382328,60357.0,60356.0,0.001913]
[1723390995940,0.26382328,60357.0,60356.0,0.000913]
[1723390996160,0.26382328,60357.0,60356.0,0.001913]
[1723390996358,0.49577628,60357.0,60356.0,0.001913]
[1723390997165,0.49477628,60357.0,60356.0,0.001913]
[1723390997373,0.49577628,60357.0,60356.0,0.001913]
[1723390997562,0.72772928,60357.0,60356.0,0.000913]
[1723390998902,0.72772928,60357.0,60356.0,0.001913]
[1723390999521,1.1234972,60357.0,60356.0,0.001913]
[1723391003374,1.1336314,60357.0,60356.0,0.001913]
[1723391004634,2.32309215,60357.0,60356.0,0.001913]
[1723391007502,2.33309215,60357.0,60356.0,0.001913]
[1723391007727,2.66504515,60357.0,60356.0,0.001913]
[1723391008307,2.66404515,60357.0,60356.0,0.001913]
[1723391008692,2.66604515,60357.0,60356.0,0.002913]
[1723391009070,2.66604515,60357.0,60356.0,0.001913]
[1723391009685,0.348033,60339.0,60338.0,0.000913]
[1723391009887,0.723855,60339.0,60338.0,0.000913]
[1723391010093,0.72580983,60339.0,60338.0,0.000913]
[1723391011047,1.12164675,60339.0,60338.0,0.000913]
[1723391012012,1.12464675,60339.0,60338.0,0.000913]
[1723391012467,1.12164675,60339.0,60338.0,0.000913]
[1723391013379,1.12864675,60339.0,60338.0,0.001913]
[1723391013923,1.56066875,60339.0,60338.0,0.001913]
[1723391014631,1.56366875,60339.0,60338.0,0.000913]
[1723391015121,1.57366875,60339.0,60338.0,0.001913]
[1723391015586,1.57366875,60339.0,60338.0,0.000913]
[1723391015587,1.56339341,60339.0,60338.0,0.000913]
[1723391015818,1.57339341,60339.0,60338.0,0.000913]
[1723391016022,1.58739341,60339.0,60338.0,0.002913]
[1723391016244,1.34537141,60339.0,60338.0,0.002913]
[1723391016457,1.33537141,60339.0,60338.0,0.001913]
[1723391016656,1.57739341,60339.0,60338.0,0.001913]
[1723391016807,1.34537141,60339.0,60338.0,0.001913]
[1723391017584,1.33537141,60339.0,60338.0,0.001913]
[1723391018336,1.14537141,60339.0,60338.0,0.002913]
[1723391019767,0.98155649,60339.0,60338.0,0.002913]
[1723391024414,0.59600983,60339.0,60338.0,0.002913]
[1723391025566,1.78355758,60339.0,60338.0,0.002913]
[1723391025809,1.76955758,60339.0,60338.0,0.000913]
[1723391025965,1.77255758,60339.0,60338.0,0.000913]
[1723391026673,1.77455758,60339.0,60338.0,0.000913]
[1723391027224,1.19450258,60339.0,60338.0,0.079013]
[1723391029498,1.31051358,60339.0,60338.0,0.079013]
[1723391029650,1.19450258,60339.0,60338.0,0.079013]
[1723391029849,1.31051358,60339.0,60338.0,0.079013]
[1723391031521,0.12296583,60339.0,60338.0,0.079013]
[1723391031955,0.35498783,60339.0,60338.0,0.000913]
[1723391032269,0.58700983,60339.0,60338.0,0.000913]
[1723391032689,0.00695483,60339.0,60338.0,0.000913]
[1723391032901,0.12296583,60339.0,60338.0,0.000913]
[1723391033316,0.35498783,60339.0,60338.0,0.000913]
[1723391034188,0.12296583,60339.0,60338.0,0.000913]
[1723391034863,0.35498783,60339.0,60338.0,0.000913]
[1723391038507,0.58700983,60339.0,60338.0,0.000913]
[1723391040929,1.12434675,60339.0,60338.0,0.000913]
[1723391043161,1.18375961,60339.0,60338.0,0.000913]
[1723391043364,2.39603775,60339.0,60338.0,0.000913]
[1723391043925,2.3118945,60339.0,60338.0,0.000913]
[1723391044140,2.39603775,60339.0,60338.0,0.000913]
[1723391044337,2.3218945,60339.0,60338.0,0.000913]
[1723391044995,2.5539165,60339.0,60338.0,0.000913]
[1723391045269,2.64805975,60339.0,60338.0,0.000913]
[1723391045469,2.887997,60339.0,60338.0,0.000913]
[1723391045697,2.87069564,60339.0,60336.0,0.000913]
[1723391045897,0.580227,60321.0,60320.0,0.005]
[1723391046187,2.07988621,60321.0,60320.0,0.005]
[1723391046309,2.08180345,60321.0,60320.0,0.005]
[1723391046947,0.00191724,60321.0,60320.0,0.433342]
[1723391047147,0.00191724,60321.0,60320.0,0.1492]
[1723391047365,1.18572175,60327.0,60325.0,0.116036]
[1723391047558,1.18572175,60327.0,60326.0,0.492308]
[1723391049082,1.18572175,60327.0,60326.0,0.499308]
[1723391049083,1.18672175,60327.0,60326.0,0.499308]
[1723391049299,1.18772175,60327.0,60326.0,0.499308]
[1723391049506,1.18772175,60327.0,60326.0,0.492308]
[1723391049507,1.18572175,60327.0,60326.0,0.492308]
[1723391049712,1.18749687,60327.0,60326.0,0.492308]
[1723391049939,1.18749687,60327.0,60326.0,0.72438]
[1723391050141,0.00177512,60327.0,60326.0,1.12026692]
[1723391050481,0.002,60327.0,60326.0,1.50598833]
[1723391050689,0.002,60327.0,60326.0,1.60598833]
[1723391050838,0.002,60327.0,60326.0,1.67480527]
[1723391051449,0.002,60327.0,60326.0,1.44273327]
[1723391052053,0.002,60327.0,60326.0,1.37391633]
[1723391052251,0.001,60327.0,60326.0,1.36691633]
[1723391052611,0.08184646,60337.0,60336.0,0.492249]
[1723391052838,0.08184646,60337.0,60336.0,0.62989841]
[1723391053070,0.08361941,60337.0,60336.0,0.62989841]
[1723391053483,0.08361941,60337.0,60336.0,0.492249]
[1723391053688,0.08361941,60337.0,60336.0,0.62988449]
[1723391054119,0.08361941,60337.0,60336.0,0.63088447]
[1723391054355,0.08461941,60337.0,60336.0,0.63179747]
[1723391054562,0.08461941,60337.0,60336.0,0.86383047]
[1723391057129,0.08461941,60337.0,60336.0,0.726195]
[1723391057339,0.08461941,60337.0,60336.0,0.86382523]
[1723391057745,0.08461941,60337.0,60336.0,0.63179223]
[1723391058727,0.08461941,60337.0,60336.0,0.86382523]
[1723391059144,0.08284646,60337.0,60336.0,0.86382523]
[1723391059444,0.08464036,60337.0,60336.0,0.86382523]
[1723391060649,0.08464036,60337.0,60336.0,0.8638273]
[1723391060997,0.08464036,60337.0,60336.0,0.86169783]
[1723391061411,0.08464036,60337.0,60336.0,0.49203253]
[1723391063495,0.08464036,60337.0,60336.0,0.72406553]
[1723391063957,0.08464036,60337.0,60336.0,0.86169947]
[1723391064201,0.08464036,60337.0,60336.0,0.49203253]
[1723391064740,0.08464036,60337.0,60336.0,0.62966354]
[1723391065791,0.08547136,60337.0,60336.0,0.62966354]
[1723391066372,0.08547136,60337.0,60336.0,0.49203253]
[1723391066592,0.08547136,60337.0,60336.0,0.62966532]
[1723391067186,0.08547136,60337.0,60336.0,0.49203253]
[1723391070306,0.08547136,60337.0,60336.0,0.6296646]
[1723391070953,0.08547136,60337.0,60336.0,0.49203253]
[1723391071371,0.08547136,60337.0,60336.0,0.62966488]
[1723391072021,0.08547136,60337.0,60336.0,0.49203253]
[1723391073849,0.08547136,60337.0,60336.0,0.72406553]
[1723391074308,0.08547136,60337.0,60336.0,0.62966394]
[1723391074769,0.08547136,60337.0,60336.0,0.86169694]
[1723391075228,0.08547136,60337.0,60336.0,0.86169544]
[1723391075485,0.0036249,60337.0,60336.0,1.45754336]
[1723391075719,0.0036249,60337.0,60336.0,1.65934781]
[1723391075940,0.000831,60337.0,60336.0,1.89338081]
[1723391076173,0.000831,60337.0,60336.0,1.9013864]
[1723391076402,0.000831,60337.0,60336.0,2.06235443]
[1723391076633,0.000831,60337.0,60336.0,2.07335443]
[1723391076865,0.000831,60337.0,60336.0,2.06235443]
[1723391077146,0.000831,60337.0,60336.0,2.07235443]
[1723391077375,0.001831,60337.0,60336.0,2.09535443]
[1723391077606,0.001831,60337.0,60336.0,2.08135443]
[1723391077836,0.000831,60337.0,60336.0,2.07235443]
[1723391078081,0.001831,60337.0,60336.0,2.08135443]
[1723391078350,0.001831,60337.0,60336.0,2.08135601]
[1723391079226,0.001831,60337.0,60336.0,2.2531597]
[1723391079800,0.001831,60337.0,60336.0,2.2671597]
[1723391080169,0.001831,60337.0,60336.0,2.09535601]
[1723391080377,0.001831,60337.0,60336.0,2.2651597]
[1723391080781,0.001831,60337.0,60336.0,2.2851597]
[1723391081136,0.001831,60337.0,60336.0,2.11535601]
[1723391081348,0.001831,60337.0,60336.0,2.2851597]
[1723391081547,0.001831,60337.0,60336.0,1.91095385]
[1723391081809,0.001831,60337.0,60336.0,2.28740946]
[1723391082170,0.001831,60337.0,60336.0,2.11735086]
[1723391082584,0.001831,60337.0,60336.0,2.11535086]
[1723391082729,0.001831,60337.0,60336.0,1.73695204]
[1723391083295,0.001831,60337.0,60336.0,1.87655223]
[1723391084268,0.001831,60337.0,60336.0,1.91095227]
[1723391084477,0.001831,60337.0,60336.0,1.73895204]
[1723391085386,0.001831,60337.0,60336.0,2.11735253]
[1723391085592,0.001831,60337.0,60336.0,2.28732534]
[1723391086038,0.001831,60337.0,60336.0,2.51935834]
[1723391087278,0.001831,60337.0,60336.0,1.97098504]
[1723391087467,0.001831,60337.0,60336.0,2.3493593]
[1723391087635,0.001831,60337.0,60336.0,2.51913351]
[1723391088003,0.001831,60337.0,60336.0,2.34935928]
[1723391090139,0.001831,60337.0,60336.0,2.10732628]
[1723391090342,0.001831,60337.0,60336.0,2.09732628]
[1723391090575,0.001831,60337.0,60336.0,2.11732628]
[1723391090799,0.001831,60337.0,60336.0,1.9109456]
[1723391091049,0.001831,60337.0,60336.0,2.11733787]
[1723391091468,0.001831,60337.0,60336.0,1.92534431]
[1723391092158,0.001831,60337.0,60336.0,2.11733936]
[1723391092352,0.001831,60337.0,60336.0,1.94534431]
[1723391093326,0.001831,60337.0,60336.0,1.74534431]
[1723391093551,0.001831,60337.0,60336.0,1.94534431]
[1723391094263,0.001831,60337.0,60336.0,1.73895204]
[1723391094478,0.001831,60337.0,60336.0,1.94535039]
[1723391094916,0.001831,60337.0,60336.0,2.11734605]
[1723391095119,0.08184646,60358.0,60336.0,2.11734605]
[1723391095120,0.08184646,60358.0,60355.0,0.5799]
[1723391095527,0.08184646,60358.0,60355.0,1.11327382]
[1723391096536,0.08184646,60358.0,60355.0,1.12527382]
[1723391097105,0.08184646,60358.0,60355.0,1.13427382]
[1723391097692,0.00331,60364.0,60355.0,1.62063382]
[1723391097894,0.0761,60362.0,60355.0,1.3786399]
[1723391098588,0.0761,60362.0,60355.0,1.3786455]
[1723391098965,0.0761,60362.0,60355.0,1.37942912]
[1723391099320,0.0761,60362.0,60355.0,1.36742912]
[1723391099701,0.0761,60362.0,60355.0,1.38142912]
[1723391099873,0.00331,60364.0,60355.0,1.36742912]
[1723391100279,0.00331,60364.0,60355.0,1.39542912]
[1723391100506,0.00331,60364.0,60355.0,1.38142912]
[1723391100709,0.00331,60364.0,60355.0,1.22302912]
[1723391100915,0.0619,60360.0,60355.0,1.23702912]
[1723391101128,0.0619,60360.0,60355.0,1.23703072]
[1723391101535,0.0619,60363.0,60355.0,1.22303072]
[1723391101740,0.0619,60363.0,60355.0,1.2132471]
[1723391101925,0.0619,60363.0,60355.0,1.2272471]
[1723391102129,0.0619,60363.0,60355.0,1.1272471]
[1723391102251,0.0761,60357.0,60355.0,1.1272471]
[1723391102484,0.08267646,60356.0,60355.0,1.1272471]
[1723391102987,0.08267646,60356.0,60355.0,1.1412471]
[1723391103397,0.08267646,60356.0,60355.0,1.1552471]
[1723391104027,0.14457646,60356.0,60355.0,1.1552471]
[1723391104575,0.08267646,60356.0,60355.0,1.1552471]
[1723391107092,0.08267646,60356.0,60355.0,1.3217471]
[1723391107093,0.00083,60356.0,60355.0,1.3217471]
[1723391107370,0.00083,60356.0,60355.0,1.25295715]
[1723391107658,0.00083,60356.0,60355.0,0.92327942]
[1723391107891,0.08267646,60356.0,60355.0,1.15524889]
[1723391111424,0.08267646,60356.0,60355.0,1.15524965]
[1723391114284,0.08267646,60356.0,60355.0,1.15524858]
[1723391116539,0.00083,60356.0,60355.0,1.15524858]
[1723391116710,0.00083,60356.0,60355.0,1.30703353]
[1723391117118,0.00083,60356.0,60355.0,1.36753353]
[1723391117491,0.00083,60356.0,60355.0,1.39053353]
[1723391117695,0.00083,60356.0,60355.0,1.18417492]
[1723391117908,0.00083,60356.0,60355.0,1.39052035]
[1723391118316,0.00083,60356.0,60355.0,1.39052648]
[1723391118967,0.261608,60356.0,60355.0,0.17956771]
[1723391119173,0.14563,60356.0,60355.0,0.17956771]
[1723391119346,0.49539197,60356.0,60355.0,0.17956771]
[1723391119719,0.14745697,60356.0,60355.0,0.52753074]
[1723391119923,0.14745697,60356.0,60355.0,0.16559354]
[1723391120107,0.14745697,60356.0,60355.0,0.29157354]
[1723391120321,0.14745697,60356.0,60355.0,0.26357354]
[1723391120666,0.14745697,60356.0,60355.0,0.26657354]
[1723391120890,0.14745697,60356.0,60355.0,0.26057354]
[1723391121343,0.14745697,60356.0,60355.0,0.26657354]
[1723391121575,0.14745697,60356.0,60355.0,0.49853354]
[1723391121799,0.14745697,60356.0,60355.0,0.89430846]
[1723391121800,0.00265697,60356.0,60355.0,0.89430846]
[1723391122000,0.00083,60356.0,60355.0,0.89430846]
[1723391122179,0.00083,60356.0,60355.0,0.88730846]
[1723391122637,0.00083,60356.0,60355.0,0.89130846]
[1723391123049,0.00083,60356.0,60355.0,0.88730846]
[1723391123461,0.00083,60356.0,60355.0,0.89430846]
[1723391123878,0.00083,60356.0,60355.0,0.88130846]
[1723391124071,0.00083,60356.0,60355.0,0.88930846]
[1723391124483,0.00083,60356.0,60355.0,0.89530846]
[1723391124651,0.00083,60356.0,60355.0,0.88929129]
[1723391125066,0.00083,60356.0,60355.0,0.90029129]
[1723391125473,0.00083,60356.0,60355.0,0.89229129]
[1723391126244,0.00083,60356.0,60355.0,0.90129129]
[1723391127314,0.00083,60356.0,60355.0,0.90129624]
[1723391128279,0.00083,60356.0,60355.0,0.90130003]
[1723391128700,0.261608,60356.0,60355.0,0.15758502]
[1723391128917,0.72734912,60356.0,60355.0,0.15758502]
[1723391129124,0.26343512,60356.0,60355.0,0.02]
[1723391129607,0.72734912,60356.0,60355.0,0.02]
[1723391130045,0.95930612,60356.0,60355.0,0.02]
[1723391130255,1.0087873,60356.0,60355.0,0.02]
[1723391130474,0.1382,60348.0,60341.0,0.116006]
[1723391130684,0.1382,60348.0,60337.0,0.0009141]
[1723391130685,0.08184646,60342.0,60340.0,0.232015]
[1723391130893,0.08184646,60342.0,60341.0,0.25362026]
[1723391131096,0.08184646,60342.0,60341.0,0.48563426]
[1723391131299,0.08367406,60342.0,60341.0,0.48563426]
[1723391131532,0.14387406,60342.0,60341.0,0.116007]
[1723391131739,0.56988906,60342.0,60341.0,0.1466131]
[1723391131961,0.56988906,60342.0,60341.0,0.009]
[1723391132166,0.194013,60338.0,60337.0,0.0009141]
[1723391132368,0.426039,60338.0,60337.0,0.0009141]
[1723391132571,0.42784935,60338.0,60337.0,0.0009141]
[1723391132800,0.19582335,60338.0,60337.0,0.0009141]
[1723391133434,0.42784935,60338.0,60337.0,0.0009141]
[1723391134235,0.19582335,60338.0,60337.0,0.0009141]
[1723391134439,0.19582335,60338.0,60337.0,0.0029141]
[1723391134642,0.07981035,60338.0,60337.0,0.0029141]
[1723391134850,0.42784935,60338.0,60337.0,0.0029141]
[1723391135069,0.19582335,60338.0,60337.0,0.0029141]
[1723391135502,0.07981035,60338.0,60337.0,0.1189291]
[1723391135723,0.07981035,60338.0,60337.0,0.3509591]
[1723391135724,0.00181035,60338.0,60337.0,0.3509591]
[1723391135934,0.00181035,60338.0,60337.0,0.74680402]
[1723391136162,0.00181035,60338.0,60337.0,1.06173402]
[1723391136379,0.08184646,60342.0,60341.0,0.348021]
[1723391136587,1.18572175,60347.0,60341.0,0.348021]
[1723391136588,1.18572175,60347.0,60341.0,0.62784292]
[1723391136793,1.18572175,60347.0,60337.0,0.0858141]
[1723391136794,1.18572175,60347.0,60346.0,0.347992]
[1723391138082,1.18572175,60347.0,60346.0,0.579987]
[1723391138303,1.18572175,60347.0,60346.0,0.57534808]
[1723391138946,1.18572175,60347.0,60346.0,0.739163]
[1723391139557,1.18772175,60347.0,60346.0,0.739163]
[1723391139764,1.18952488,60347.0,60346.0,0.739163]
[1723391140986,1.18752488,60347.0,60346.0,0.739163]
[1723391141188,1.18752488,60347.0,60346.0,1.11676065]
[1723391141395,0.00180313,60347.0,60346.0,1.11676065]
[1723391141610,0.08184646,60349.0,60348.0,0.811954]
[1723391141819,0.00083,60356.0,60355.0,0.34794]
[1723391142027,0.00263057,60356.0,60355.0,0.74371492]
[1723391142216,0.00263057,60356.0,60355.0,0.88129789]
[1723391142217,0.00083,60356.0,60355.0,0.88129789]
[1723391144538,0.00083,60356.0,60355.0,0.88729789]
[1723391144997,0.00083,60356.0,60355.0,0.75771492]
[1723391145218,0.00083,60356.0,60355.0,0.89529641]
[1723391145444,1.44632975,60356.0,60355.0,0.014]
[1723391145672,1.68010761,60356.0,60355.0,0.014]
[1723391145919,1.91206461,60356.0,60355.0,0.014]
[1723391146173,2.14402161,60356.0,60355.0,0.014]
[1723391146927,2.14402161,60356.0,60355.0,0.006]
[1723391147155,2.14402161,60356.0,60355.0,0.012]
[1723391147377,2.14402161,60356.0,60355.0,0.006]
[1723391147598,2.14402161,60356.0,60355.0,0.009]
[1723391148047,2.15402161,60356.0,60355.0,0.009]
[1723391148271,2.15402161,60356.0,60355.0,0.006]
[1723391148272,2.14402161,60356.0,60355.0,0.006]
[1723391148513,0.115999,60345.0,60341.0,0.116006]
[1723391148731,0.08184646,60342.0,60341.0,0.116006]
[1723391149194,0.08365756,60342.0,60341.0,0.116006]
[1723391149422,0.08365756,60342.0,60341.0,0.34802]
[1723391150063,0.08365756,60342.0,60341.0,0.116006]
[1723391150523,0.08365756,60342.0,60341.0,0.34802]
[1723391151238,0.08365756,60342.0,60341.0,0.35602]
[1723391151920,0.08365756,60342.0,60341.0,0.134006]
[1723391155404,0.08365756,60342.0,60341.0,0.018]
[1723391155674,0.43167256,60342.0,60341.0,0.018]
[1723391155922,1.92920431,60342.0,60341.0,0.018]
[1723391156197,2.22171431,60342.0,60341.0,0.018]
[1723391157087,2.22171431,60342.0,60337.0,0.0009141]
[1723391157307,0.580065,60338.0,60337.0,0.0009141]
[1723391157732,0.58201947,60338.0,60337.0,0.0009141]
[1723391158380,0.58201947,60338.0,60337.0,0.0019141]
[1723391158381,0.66181947,60338.0,60337.0,0.0019141]
[1723391159526,1.84754122,60338.0,60337.0,0.0019141]
[1723391160015,1.84754122,60338.0,60337.0,0.0009141]
[1723391160232,1.18767622,60338.0,60337.0,0.0009141]
[1723391160451,1.18967622,60338.0,60337.0,0.3489591]
[1723391160681,1.38548922,60338.0,60337.0,0.0009141]
[1723391160902,1.91004122,60338.0,60337.0,0.0009141]
[1723391161583,1.91004122,60338.0,60337.0,0.0069141]
[1723391161805,1.67801522,60338.0,60337.0,0.0069141]
[1723391162027,1.18967622,60338.0,60337.0,0.1169291]
[1723391162702,1.18767622,60338.0,60337.0,0.3489591]
[1723391164110,1.18767622,60338.0,60337.0,0.0039141]
[1723391164328,1.30368922,60338.0,60337.0,0.0039141]
[1723391164556,1.38348922,60338.0,60337.0,0.0039141]
[1723391164787,1.38348922,60338.0,60337.0,0.0099141]
[1723391165446,0.26076747,60338.0,60337.0,0.0099141]
[1723391165668,0.26076747,60338.0,60337.0,0.0069141]
[1723391165932,0.26076747,60338.0,60337.0,0.0079141]
[1723391166151,0.26076747,60338.0,60337.0,0.0019141]
[1723391166379,0.14475447,60338.0,60337.0,0.0059141]
[1723391167165,0.14475447,60338.0,60337.0,0.0049141]
[1723391168014,0.14475447,60338.0,60337.0,0.0009141]
[1723391168486,0.14475447,60338.0,60337.0,0.0029141]
[1723391170727,0.26076747,60338.0,60337.0,0.0029141]
[1723391171192,0.72481947,60338.0,60337.0,0.0029141]
[1723391171400,1.67851522,60338.0,60337.0,0.0029141]
[1723391171815,1.91054122,60338.0,60337.0,0.0009141]
[1723391172251,1.91254122,60338.0,60337.0,0.0009141]
[1723391173167,1.18967622,60338.0,60337.0,0.0009141]
[1723391173390,1.18767622,60338.0,60337.0,0.4862591]
[1723391173875,1.18967622,60338.0,60337.0,0.855919]
[1723391174101,1.18967622,60338.0,60337.0,0.623889]
[1723391174324,1.18767622,60338.0,60337.0,0.623889]
[1723391174551,1.18767622,60338.0,60337.0,0.626889]
[1723391174769,1.18767622,60338.0,60337.0,0.48958973]
[1723391174993,1.18767622,60338.0,60337.0,0.49558973]
[1723391175436,1.18767622,60338.0,60337.0,0.14754473]
[1723391176075,1.30368922,60338.0,60337.0,0.14754473]
[1723391176310,1.18767622,60338.0,60337.0,0.14754473]
[1723391176542,1.18767622,60338.0,60337.0,0.14755228]
[1723391177400,1.18767622,60338.0,60337.0,0.26356728]
[1723391180011,1.18767622,60338.0,60337.0,0.26356121]
[1723391183161,0.00195447,60338.0,60337.0,0.26356121]
[1723391183520,0.00195447,60338.0,60337.0,0.86492121]
[1723391183969,0.00195447,60338.0,60337.0,0.86491864]
[1723391187730,0.00195447,60338.0,60337.0,0.72761864]
[1723391189801,0.08184646,60342.0,60340.0,0.116009]
[1723391190002,0.08184646,60342.0,60341.0,0.13762954]
[1723391190663,0.08184646,60342.0,60340.0,0.116009]
[1723391190867,0.08184646,60342.0,60341.0,0.13763218]
[1723391191070,0.08284646,60342.0,60341.0,0.13763218]
[1723391191783,0.08284646,60342.0,60341.0,0.25363918]
[1723391192231,0.08284646,60342.0,60341.0,0.13763218]
[1723391192693,0.08184646,60342.0,60341.0,0.25463918]
[1723391192908,0.08284646,60342.0,60341.0,0.25463918]
[1723391193164,0.001,60342.0,60341.0,0.7917681]
[1723391193414,0.001,60342.0,60341.0,1.58961332]
[1723391193868,0.001,60342.0,60341.0,2.05309558]
[1723391194077,0.000831,60346.0,60345.0,0.811996]
[1723391194309,0.000831,60346.0,60345.0,1.43055409]
[1723391194570,0.000831,60346.0,60345.0,1.69021372]
[1723391194784,0.000831,60346.0,60345.0,1.68983204]
[1723391194992,0.000831,60346.0,60345.0,1.34848809]
[1723391195216,0.000831,60346.0,60345.0,1.80212354]
[1723391195424,0.000831,60346.0,60345.0,1.6301451]
[1723391195627,0.000831,60346.0,60345.0,1.59448709]
[1723391195844,0.000831,60346.0,60345.0,1.38810992]
[1723391196049,0.000831,60346.0,60345.0,1.60848392]
[1723391196472,0.000831,60346.0,60345.0,1.32348492]
[1723391196684,0.000831,60346.0,60345.0,0.79357967]
[1723391196912,0.000831,60346.0,60345.0,0.16558267]
[1723391197125,0.06394169,60346.0,60345.0,0.16558267]
[1723391197337,0.062131,60346.0,60345.0,0.16558267]
[1723391197542,0.06394162,60346.0,60345.0,0.26758167]
[1723391198025,0.06394162,60346.0,60345.0,0.49960966]
[1723391198234,0.00264162,60346.0,60345.0,0.49960966]
[1723391198694,0.00264162,60346.0,60345.0,0.48560966]
[1723391198966,0.00264162,60346.0,60345.0,0.51360966]
[1723391199205,0.00264162,60346.0,60345.0,0.014]
[1723391199437,0.00264162,60346.0,60345.0,0.129999]
[1723391199665,0.00264162,60346.0,60345.0,0.142999]
[1723391199897,0.00264162,60346.0,60345.0,0.027]
[1723391200123,0.00264162,60346.0,60345.0,0.142999]
[1723391201064,1.18836337,60346.0,60345.0,0.142999]
[1723391201503,1.18836337,60346.0,60345.0,0.027]
[1723391201971,1.38626037,60346.0,60345.0,0.027]
[1723391202186,1.91155037,60346.0,60345.0,0.027]
[1723391203235,1.92155037,60346.0,60345.0,0.013]
[1723391203443,0.429915,60342.0,60341.0,0.0009141]
[1723391203641,0.51176146,60342.0,60341.0,0.0009141]
[1723391203848,0.51372851,60342.0,60341.0,0.0009141]
[1723391205203,0.51372851,60342.0,60341.0,0.0019141]
[1723391205707,0.16571351,60342.0,60341.0,0.0019141]
[1723391205961,0.00196705,60342.0,60341.0,0.7238491]
[1723391206189,0.00196705,60342.0,60341.0,0.86147264]
[1723391206418,1.18655275,60346.0,60345.0,0.347998]
[1723391207095,1.18655275,60346.0,60341.0,0.3758281]
[1723391207338,0.08184646,60342.0,60341.0,0.0019141]
[1723391207584,0.42986146,60342.0,60341.0,0.0019141]
[1723391208007,0.42986146,60342.0,60341.0,0.0009141]
[1723391208446,0.73937146,60342.0,60341.0,0.0009141]
[1723391211046,0.73937146,60342.0,60341.0,0.0019141]
[1723391211467,1.03618146,60342.0,60341.0,0.0019141]
[1723391211672,1.19999638,60342.0,60341.0,0.0019141]
[1723391211874,1.29923823,60342.0,60341.0,0.0019141]
[1723391212495,1.27443595,60342.0,60341.0,0.0009141]
[1723391212700,1.27643595,60342.0,60341.0,0.0009141]
[1723391212911,2.38771813,60342.0,60341.0,0.0009141]
[1723391213116,1.75988321,60342.0,60341.0,0.0009141]
[1723391213327,1.69608321,60342.0,60341.0,0.0009141]
[1723391213556,1.61858321,60342.0,60341.0,0.0009141]
[1723391214174,1.61558321,60342.0,60341.0,0.0009141]
[1723391214379,1.84759321,60342.0,60341.0,0.0009141]
[1723391214621,1.84954358,60342.0,60341.0,0.0019141]
[1723391215000,1.92754358,60342.0,60341.0,0.0029141]
[1723391215412,1.92554358,60342.0,60341.0,0.0019141]
[1723391215849,1.92754358,60342.0,60341.0,0.0009141]
[1723391216058,1.92854358,60342.0,60341.0,0.0009141]
[1723391216849,1.92754358,60342.0,60341.0,0.0009141]
[1723391217220,1.92654358,60342.0,60341.0,0.0009141]
[1723391217429,1.92854358,60342.0,60341.0,0.0009141]
[1723391217631,1.85254358,60342.0,60341.0,0.0009141]
[1723391219858,2.3891685,60342.0,60341.0,0.0009141]
[1723391220061,2.44878688,60342.0,60341.0,0.0009141]
[1723391220264,2.3991685,60342.0,60341.0,0.0009141]
[1723391220467,2.49840526,60342.0,60341.0,0.0009141]
[1723391220671,2.4191685,60342.0,60341.0,0.0009141]